lending/lending_fUSD_20240510
["ID","MTS","AMOUNT","RATE_DAILY","PERIOD"]
[326752144,1715308250259,-500.0,0.00027397,4]
[326752145,1715308250269,-682.15,0.00027397,4]
[326752146,1715308250279,-500.0,0.00027397,4]
[326752147,1715308250288,-373.58383042,0.00027397,4]
[326752148,1715308250298,-500.0,0.00027397,4]
[326752149,1715308250308,-500.0,0.00027397,4]
[326752150,1715308250320,-889.1977049,0.00027397,4]
[326752151,1715308250330,-511.12313446,0.00027397,4]
[326752152,1715308250339,-2495.92,0.00027397,4]
[326752153,1715308250349,-784.67,0.00027397,4]
[326752154,1715308250358,-507.40338314,0.00027397,4]
[326752155,1715308250367,-500.0,0.00027397,2]
[326752156,1715308250376,-500.0,0.00027397,4]
[326752157,1715308250385,-1500.16,0.00027397,4]
[326752158,1715308250394,-514.44353377,0.00027397,4]
[326752159,1715308250404,-503.58,0.00027397,4]
[326752160,1715308250413,-500.0,0.00027397,4]
[326752161,1715308250422,-2037.18,0.00027397,4]
[326752162,1715308250432,-1038.79,0.00027397,4]
[326752163,1715308250441,-500.0,0.00027397,4]
[326752164,1715308250451,-500.0,0.00027397,4]
[326752165,1715308250468,-605.09,0.00027397,4]
[326752166,1715308250477,-500.0,0.00027397,4]
[326752167,1715308250487,-500.0,0.00027397,4]
[326752168,1715308250498,-151.0,0.00027397,7]
[326752169,1715308250508,-151.0,0.00027397,7]
[326752170,1715308250518,-151.0,0.00027397,7]
[326752171,1715308250527,-500.0,0.00027397,4]
[326752172,1715308250539,-506.38573765,0.00027397,4]
[326752173,1715308250548,-151.0,0.00027397,7]
[326752174,1715308250558,-151.0,0.00027397,7]
[326752175,1715308250567,-292.071132,0.00027397,7]
[326752176,1715308250576,-197.270429,0.00027397,7]
[326752177,1715308250586,-292.071132,0.00027397,7]
[326752178,1715308250595,-292.071132,0.00027397,7]
[326752179,1715308250604,-292.071132,0.00027397,7]
[326752180,1715308250614,-286.50487032,0.00027397,4]
[326752181,1715308250623,-292.071132,0.00027397,7]
[326752182,1715308250634,-292.071132,0.00027397,7]
[326752183,1715308250644,-500.0,0.00027397,4]
[326752184,1715308250655,-292.071132,0.00027397,7]
[326752185,1715308250665,-1134.2,0.00027397,4]
[326752186,1715308250674,-500.0,0.00027397,4]
[326752187,1715308250684,-508.30950815,0.00027397,4]
[326752188,1715308250694,-506.78795821,0.00027397,4]
[326752189,1715308250704,-292.071132,0.00027397,7]
[326752190,1715308250714,-292.071132,0.00027397,7]
[326752191,1715308250724,-292.071132,0.00027397,7]
[326752192,1715308250733,-507.1177816,0.00027397,4]
[326752193,1715308250744,-292.071132,0.00027397,7]
[326752194,1715308250756,-292.071132,0.00027397,7]
[326752195,1715308250766,-292.071132,0.00027397,7]
[326752196,1715308250776,-515.63,0.00027397,4]
[326752197,1715308250786,-292.071132,0.00027397,7]
[326752198,1715308250795,-915.98,0.00027397,4]
[326752199,1715308250804,-292.071132,0.00027397,7]
[326752200,1715308250814,-2859.5,0.00027397,4]
[326752201,1715308250895,-292.071123,0.00027397,7]
[326752202,1715308250906,-151.0,0.00027397,7]
[326752203,1715308250915,-151.0,0.00027397,7]
[326752204,1715308250925,-151.0,0.00027397,7]
[326752205,1715308250935,-500.0,0.00027397,4]
[326752206,1715308250944,-151.0,0.00027397,7]
[326752207,1715308250954,-151.0,0.00027397,7]
[326752208,1715308250963,-500.0,0.00027397,4]
[326752209,1715308250973,-151.0,0.00027397,7]
[326752210,1715308250982,-151.0,0.00027397,7]
[326752211,1715308250991,-151.0,0.00027397,7]
[326752212,1715308251001,-1141.27,0.00027397,4]
[326752213,1715308251010,-552.68,0.00027397,4]
[326752214,1715308251020,-506.35031317,0.00027397,4]
[326752215,1715308251029,-508.38291953,0.00027397,4]
[326752216,1715308251038,-680.92,0.00027397,4]
[326752217,1715308251048,-151.0,0.00027397,7]
[326752218,1715308251058,-151.0,0.00027397,7]
[326752219,1715308251067,-151.0,0.00027397,7]
[326752220,1715308251077,-151.0,0.00027397,7]
[326752221,1715308251086,-1070.3,0.00027397,4]
[326752222,1715308251096,-209.894172,0.00027397,7]
[326752223,1715308251105,-500.0,0.00027397,4]
[326752224,1715308251114,-1112.15,0.00027397,4]
[326752225,1715308251124,-500.0,0.00027397,4]
[326752226,1715308251133,-697.75,0.00027397,4]
[326752227,1715308251142,-1572.99,0.00027397,4]
[326752228,1715308251151,-1862.76,0.00027397,4]
[326752229,1715308251160,-500.0,0.00027397,4]
[326752230,1715308251170,-345.371905,0.00027397,7]
[326752231,1715308251179,-345.371905,0.00027397,7]
[326752232,1715308251189,-345.371905,0.00027397,7]
[326752233,1715308251198,-345.371905,0.00027397,7]
[326752234,1715308251207,-345.371905,0.00027397,7]
[326752235,1715308251216,-345.371905,0.00027397,7]
[326752236,1715308251225,-345.371905,0.00027397,7]
[326752237,1715308251234,-500.0,0.00027397,4]
[326752238,1715308251244,-500.0,0.00027397,4]
[326752239,1715308251253,-726.77,0.00027397,4]
[326752240,1715308251262,-345.371905,0.00027397,7]
[326752241,1715308251271,-500.0,0.00027397,4]
[326752242,1715308251280,-345.371905,0.00027397,7]
[326752243,1715308251290,-345.371905,0.00027397,7]
[326752244,1715308251299,-345.371905,0.00027397,7]
[326752245,1715308251308,-560.26,0.00027397,4]
[326752246,1715308251318,-151.548932,0.00027397,7]
[326752247,1715308251327,-345.371905,0.00027397,7]
[326752248,1715308251336,-834.84,0.00027397,4]
[326752249,1715308251345,-500.0,0.00027397,4]
[326752250,1715308251354,-500.0,0.00027397,4]
[326752251,1715308251363,-345.371905,0.00027397,7]
[326752252,1715308251373,-345.371905,0.00027397,7]
[326752253,1715308251382,-345.371905,0.00027397,7]
[326752254,1715308251391,-345.371906,0.00027397,7]
[326752255,1715308251400,-508.28522211,0.00027397,4]
[326752256,1715308251409,-866.99,0.00027397,4]
[326752257,1715308251418,-511.4677889,0.00027397,4]
[326752258,1715308251428,-500.0,0.00027397,4]
[326752259,1715308251437,-500.0,0.00027397,4]
[326752260,1715308251446,-490.7627507,0.00027397,4]
[326752261,1715308251456,-151.0,0.00027397,7]
[326752262,1715308251467,-500.0,0.00027397,4]
[326752263,1715308251479,-182.018106,0.00027397,7]
[326752264,1715308251488,-2476.88,0.00027397,4]
[326752265,1715308251497,-508.21273304,0.00027397,4]
[326752266,1715308251510,-734.07,0.00027397,4]
[326752267,1715308251519,-500.0,0.00027397,4]
[326752268,1715308251529,-500.0,0.00027397,4]
[326752269,1715308251540,-500.0,0.00027397,4]
[326752270,1715308251549,-500.0,0.00027397,5]
[326752271,1715308251558,-500.0,0.00027397,6]
[326752272,1715308251569,-1906.94,0.00027397,4]
[326752273,1715308251578,-500.0,0.00027397,7]
[326752274,1715308251587,-1906.94,0.00027397,5]
[326752275,1715308251596,-500.0,0.00027397,8]
[326752276,1715308251606,-500.0,0.00027397,9]
[326752277,1715308251616,-1906.94,0.00027397,6]
[326752278,1715308251626,-500.0,0.00027397,10]
[326752279,1715308251636,-1906.94,0.00027397,7]
[326752280,1715308251645,-500.0,0.00027397,11]
[326752281,1715308251654,-1906.94,0.00027397,8]
[326752282,1715308251664,-504.14264094,0.00027397,4]
[326752283,1715308251674,-1906.94,0.00027397,9]
[326752284,1715308251684,-1906.94,0.00027397,10]
[326752285,1715308251693,-500.0,0.00027397,12]
[326752286,1715308251702,-1906.94,0.00027397,11]
[326752287,1715308251712,-500.0,0.00027397,13]
[326752288,1715308251722,-500.0,0.00027397,4]
[326752289,1715308251732,-1906.94,0.00027397,12]
[326752290,1715308251742,-518.67424707,0.00027397,14]
[326752291,1715308251752,-955.58,0.00027397,4]
[326752292,1715308251762,-1906.94,0.00027397,13]
[326752293,1715308251771,-1906.94,0.00027397,14]
[326752294,1715308251781,-1906.94,0.00027397,15]
[326752295,1715308251790,-1906.94,0.00027397,16]
[326752296,1715308251799,-500.0,0.00027397,4]
[326752297,1715308251808,-1906.94,0.00027397,17]
[326752298,1715308251818,-1906.94,0.00027397,18]
[326752299,1715308251828,-926.59,0.00027397,4]
[326752300,1715308251838,-1906.94,0.00027397,19]
[326752301,1715308251848,-500.0,0.00027397,4]
[326752302,1715308251858,-1906.94,0.00027397,20]
[326752303,1715308251869,-1906.94,0.00027397,21]
[326752304,1715308251878,-1312.46,0.00027397,4]
[326752305,1715308251887,-1906.94,0.00027397,22]
[326752306,1715308251897,-1906.94,0.00027397,23]
[326752307,1715308251906,-1906.94,0.00027397,23]
[326752308,1715308251915,-1906.94,0.00027397,23]
[326752309,1715308251925,-1906.94,0.00027397,23]
[326752310,1715308251935,-1907.1595462,0.00027397,23]
[326752311,1715308251944,-521.7730874,0.00027397,4]
[326752312,1715308251954,-500.0,0.00027397,4]
[326752313,1715308251964,-500.0,0.00027397,4]
[326752314,1715308251973,-659.66,0.00027397,4]
[326752315,1715308251982,-506.86469138,0.00027397,4]
[326752316,1715308251991,-500.0,0.00027397,4]
[326752317,1715308252001,-226.24666087,0.00027397,4]
[326752318,1715308252010,-500.0,0.00027397,4]
[326752319,1715308252019,-500.0,0.00027397,4]
[326752320,1715308252029,-1586.58,0.00027397,4]
[326752321,1715308252040,-500.0,0.00027397,4]
[326752322,1715308252050,-500.0,0.00027397,4]
[326752323,1715308252059,-500.0,0.00027397,4]
[326752324,1715308252068,-1075.95,0.00027397,4]
[326752325,1715308252078,-1150.23,0.00027397,4]
[326752326,1715308252087,-185.561694,0.00027397,7]
[326752327,1715308252096,-185.561694,0.00027397,7]
[326752328,1715308252105,-573.49,0.00027397,4]
[326752329,1715308252114,-185.561694,0.00027397,7]
[326752330,1715308252124,-185.561694,0.00027397,7]
[326752331,1715308252132,-500.0,0.00027397,4]
[326752332,1715308252142,-185.561694,0.00027397,7]
[326752333,1715308252151,-185.561694,0.00027397,7]
[326752334,1715308252159,-185.561694,0.00027397,7]
[326752335,1715308252168,-185.561694,0.00027397,7]
[326752336,1715308252177,-500.0,0.00027397,4]
[326752337,1715308252186,-185.561694,0.00027397,7]
[326752338,1715308252195,-185.561694,0.00027397,7]
[326752339,1715308252205,-507.38879093,0.00027397,4]
[326752340,1715308252214,-895.46,0.00027397,4]
[326752341,1715308252222,-185.561694,0.00027397,7]
[326752342,1715308252231,-185.561694,0.00027397,7]
[326752343,1715308252241,-1130.51,0.00027397,4]
[326752344,1715308252250,-185.561694,0.00027397,7]
[326752345,1715308252259,-185.561694,0.00027397,7]
[326752346,1715308252268,-185.561694,0.00027397,7]
[326752347,1715308252278,-506.57584749,0.00027397,4]
[326752348,1715308252287,-500.0,0.00027397,4]
[326752349,1715308252296,-185.561702,0.00027397,7]
[326752350,1715308252305,-500.0,0.00027397,4]
[326752351,1715308252314,-753.88,0.00027397,4]
[326752352,1715308252323,-510.23383098,0.00027397,4]
[326752353,1715308252332,-152.810545,0.00027397,7]
[326752354,1715308252341,-502.29224589,0.00027397,4]
[326752355,1715308252350,-619.99,0.00027397,4]
[326752356,1715308252359,-500.0,0.00027397,4]
[326752357,1715308252369,-500.0,0.00027397,4]
[326752358,1715308252378,-1368.48,0.00027397,4]
[326752359,1715308252387,-1719.03,0.00027397,4]
[326752360,1715308252396,-1248.81,0.00027397,4]
[326752361,1715308252405,-500.0,0.00027397,4]
[326752362,1715308252415,-505.49547615,0.00027397,4]
[326752363,1715308252424,-500.0,0.00027397,4]
[326752364,1715308252433,-1145.01,0.00027397,4]
[326752365,1715308252442,-500.0,0.00027397,4]
[326752366,1715308252451,-500.0,0.00027397,4]
[326752367,1715308252465,-500.0,0.00027397,4]
[326752368,1715308252474,-500.0,0.00027397,4]
[326752369,1715308252483,-506.61219125,0.00027397,4]
[326752370,1715308252493,-1057.47,0.00027397,4]
[326752371,1715308252502,-602.25,0.00027397,4]
[326752372,1715308252512,-509.53779393,0.00027397,4]
[326752373,1715308252521,-517.87,0.00027397,4]
[326752374,1715308252530,-515.9548381,0.00027397,4]
[326752375,1715308252543,-724.0,0.00027397,4]
[326752376,1715308252552,-508.25161239,0.00027397,4]
[326752377,1715308252561,-1184.21,0.00027397,4]
[326752378,1715308252571,-500.0,0.00027397,4]
[326752379,1715308252580,-500.0,0.00027397,4]
[326752380,1715308252590,-507.09016684,0.00027397,4]
[326752381,1715308252599,-500.0,0.00027397,4]
[326752382,1715308252609,-773.99,0.00027397,4]
[326752383,1715308252618,-731.26,0.00027397,4]
[326752384,1715308252627,-1123.24,0.00027397,4]
[326752385,1715308252637,-500.0,0.00027397,4]
[326752386,1715308252647,-500.0,0.00027397,4]
[326752387,1715308252656,-512.49805309,0.00027397,4]
[326752388,1715308252665,-500.0,0.00027397,4]
[326752389,1715308252674,-610.49,0.00027397,4]
[326752390,1715308252683,-500.0,0.00027397,4]
[326752391,1715308252693,-1258.47,0.00027397,4]
[326752392,1715308252702,-734.91,0.00027397,4]
[326752393,1715308252711,-769.35,0.00027397,4]
[326752394,1715308252720,-500.0,0.00027397,4]
[326752395,1715308252729,-500.0,0.00027397,4]
[326752396,1715308252738,-2917.42,0.00027397,4]
[326752397,1715308252748,-500.0,0.00027397,4]
[326752398,1715308252757,-521.85423257,0.00027397,4]
[326752399,1715308252765,-500.0,0.00027397,4]
[326752400,1715308252772,-504.18421649,0.00027397,4]
[326752401,1715308252780,-994.73,0.00027397,4]
[326752402,1715308252789,-507.13225781,0.00027397,4]
[326752403,1715308252797,-500.0,0.00027397,4]
[326752404,1715308252803,-500.65704854,0.00027397,4]
[326752405,1715308252810,-500.0,0.00027397,4]
[326752406,1715308252817,-500.0,0.00027397,4]
[326752407,1715308252824,-151.96893,0.00027397,7]
[326752408,1715308252833,-512.28396437,0.00027397,4]
[326752409,1715308252842,-902.24,0.00027397,4]
[326752410,1715308252851,-500.0,0.00027397,4]
[326752411,1715308252860,-1658.87,0.00027397,4]
[326752412,1715308252869,-1017.88,0.00027397,4]
[326752413,1715308252878,-1191.67,0.00027397,4]
[326752414,1715308252888,-568.73638899,0.00027397,4]
[326752415,1715308252897,-500.0,0.00027397,4]
[326752416,1715308252906,-746.3,0.00027397,4]
[326752417,1715308252915,-502.24953674,0.00027397,4]
[326752418,1715308252924,-507.26906682,0.00027397,4]
[326752419,1715308252935,-500.0,0.00027397,4]
[326752420,1715308252944,-506.76925329,0.00027397,4]
[326752421,1715308252953,-508.3853502,0.00027397,4]
[326752422,1715308252962,-858.43,0.00027397,4]
[326752423,1715308252971,-407.32125212,0.00027397,4]
[326752424,1715308252980,-507.55759605,0.00027397,4]
[326752425,1715308252990,-507.69106082,0.00027397,4]
[326752426,1715308252999,-151.0,0.00027397,7]
[326752427,1715308253008,-151.0,0.00027397,7]
[326752428,1715308253018,-151.0,0.00027397,7]
[326752429,1715308253027,-163.362605,0.00027397,7]
[326752430,1715308253037,-515.17668582,0.00027397,4]
[326752431,1715308253046,-574.05,0.00027397,4]
[326752432,1715308253056,-500.0,0.00027397,4]
[326752433,1715308253065,-613.29,0.00027397,4]
[326752434,1715308253074,-585.49,0.00027397,4]
[326752435,1715308253083,-151.0,0.00027397,7]
[326752436,1715308253093,-500.0,0.00027397,4]
[326752437,1715308253102,-151.0,0.00027397,7]
[326752438,1715308253111,-151.0,0.00027397,7]
[326752439,1715308253120,-500.0,0.00027397,4]
[326752440,1715308253130,-179.166029,0.00027397,7]
[326752441,1715308253139,-512.47810892,0.00027397,4]
[326752442,1715308253149,-500.0,0.00027397,4]
[326752443,1715308253158,-151.941394,0.00027397,7]
[326752444,1715308253168,-826.61,0.00027397,4]
[326752445,1715308253177,-500.0,0.00027397,4]
[326752446,1715308253188,-720.54,0.00027397,4]
[326752447,1715308253197,-151.0,0.00027397,7]
[326752448,1715308253206,-151.819077,0.00027397,7]
[326752449,1715308253214,-503.92322332,0.00027397,4]
[326752450,1715308253224,-512.99624636,0.00027397,4]
[326752451,1715308253233,-1007.04,0.00027397,4]
[326752452,1715308253242,-2279.55,0.00027397,4]
[326752453,1715308253252,-510.01957736,0.00027397,4]
[326752454,1715308253261,-506.21456636,0.00027397,4]
[326752455,1715308253271,-500.0,0.00027397,4]
[326752456,1715308253280,-561.7,0.00027397,4]
[326752457,1715308253288,-507.56286377,0.00027397,4]
[326752458,1715308253298,-847.45,0.00027397,4]
[326752459,1715308253307,-500.0,0.00027397,4]
[326752460,1715308253317,-151.0,0.00027397,7]
[326752461,1715308253326,-154.076859,0.00027397,7]
[326752462,1715308253334,-601.21,0.00027397,4]
[326752463,1715308253343,-507.99908976,0.00027397,4]
[326752464,1715308253352,-512.84575495,0.00027397,4]
[326752465,1715308253361,-1218.23,0.00027397,4]
[326752466,1715308253370,-500.0,0.00027397,4]
[326752467,1715308253380,-500.0,0.00027397,4]
[326752468,1715308253389,-1375.52,0.00027397,4]
[326752469,1715308253398,-500.0,0.00027397,4]
[326752470,1715308253407,-500.0,0.00027397,4]
[326752471,1715308253415,-511.9766129,0.00027397,4]
[326752472,1715308253425,-1447.53,0.00027397,4]
[326752473,1715308253436,-545.35246942,0.00027397,4]
[326752474,1715308253445,-500.0,0.00027397,4]
[326752475,1715308253454,-535.00279168,0.00027397,2]
[326752476,1715308253467,-500.0,0.00027397,4]
[326752477,1715308253476,-508.56513828,0.00027397,4]
[326752478,1715308253486,-504.09734263,0.00027397,4]
[326752479,1715308253495,-506.8270021,0.00027397,4]
[326752480,1715308253506,-151.0,0.00027397,7]
[326752481,1715308253515,-158.676889,0.00027397,7]
[326752482,1715308253524,-500.0,0.00027397,4]
[326752483,1715308253534,-500.0,0.00027397,4]
[326752484,1715308253543,-510.64145623,0.00027397,4]
[326752485,1715308253553,-503.81,0.00027397,4]
[326752486,1715308253563,-500.0,0.00027397,4]
[326752487,1715308253572,-500.0,0.00027397,4]
[326752488,1715308253581,-500.0,0.00027397,4]
[326752489,1715308253590,-151.0,0.00027397,7]
[326752490,1715308253599,-151.0,0.00027397,7]
[326752491,1715308253608,-581.03,0.00027397,4]
[326752492,1715308253617,-1075.18,0.00027397,4]
[326752493,1715308253627,-515.43291485,0.00027397,4]
[326752494,1715308253636,-151.0,0.00027397,7]
[326752495,1715308253646,-151.0,0.00027397,7]
[326752496,1715308253655,-500.0,0.00027397,4]
[326752497,1715308253664,-151.0,0.00027397,7]
[326752498,1715308253674,-500.0,0.00027397,4]
[326752499,1715308253686,-179.928113,0.00027397,7]
[326752500,1715308253695,-1167.97,0.00027397,4]
[326752501,1715308253704,-1178.39,0.00027397,4]
[326752502,1715308253714,-752.13,0.00027397,4]
[326752503,1715308253723,-576.38645895,0.00027397,4]
[326752504,1715308253732,-714.99,0.00027397,4]
[326752505,1715308253742,-505.63251782,0.00027397,4]
[326752506,1715308253751,-500.0,0.00027397,4]
[326752507,1715308253761,-500.0,0.00027397,4]
[326752508,1715308253772,-500.0,0.00027397,4]
[326752509,1715308253781,-1167.02,0.00027397,4]
[326752510,1715308253791,-2986.57,0.00027397,4]
[326752511,1715308253800,-763.92,0.00027397,4]
[326752512,1715308253809,-500.0,0.00027397,4]
[326752513,1715308253819,-821.33,0.00027397,4]
[326752514,1715308253828,-2690.76,0.00027397,4]
[326752515,1715308253837,-1310.05,0.00027397,4]
[326752516,1715308253847,-1048.23,0.00027397,4]
[326752517,1715308253856,-1313.58,0.00027397,4]
[326752518,1715308253865,-237.501495,0.00027397,7]
[326752519,1715308253875,-764.84,0.00027397,4]
[326752520,1715308253884,-500.0,0.00027397,4]
[326752521,1715308253893,-2112.05,0.00027397,4]
[326752522,1715308253902,-290.314,0.00027397,7]
[326752523,1715308253911,-290.314,0.00027397,7]
[326752524,1715308253920,-290.314,0.00027397,7]
[326752525,1715308253929,-290.314,0.00027397,7]
[326752526,1715308253940,-290.314,0.00027397,7]
[326752527,1715308253949,-151.0,0.00027397,7]
[326752528,1715308253958,-151.377025,0.00027397,7]
[326752529,1715308253967,-290.314,0.00027397,7]
[326752530,1715308253976,-290.314,0.00027397,7]
[326752531,1715308253985,-290.314,0.00027397,7]
[326752532,1715308253994,-1076.07,0.00027397,4]
[326752533,1715308254003,-290.314,0.00027397,7]
[326752534,1715308254012,-506.53454227,0.00027397,4]
[326752535,1715308254021,-290.314,0.00027397,7]
[326752536,1715308254030,-290.314,0.00027397,7]
[326752537,1715308254039,-290.314,0.00027397,7]
[326752538,1715308254048,-290.314,0.00027397,7]
[326752539,1715308254058,-290.314,0.00027397,7]
[326752540,1715308254067,-1669.24,0.00027397,4]
[326752541,1715308254076,-290.314,0.00027397,7]
[326752542,1715308254086,-791.22,0.00027397,4]
[326752543,1715308254095,-290.314005,0.00027397,7]
[326752544,1715308254104,-500.0,0.00027397,4]
[326752545,1715308254113,-153.260731,0.00027397,7]
[326752546,1715308254122,-1256.41,0.00027397,4]
[326752547,1715308254131,-513.20363361,0.00027397,4]
[326752548,1715308254140,-2270.92,0.00027397,4]
[326752549,1715308254149,-328.61724023,0.00027397,4]
[326752550,1715308254159,-500.0,0.00027397,4]
[326752551,1715308254168,-510.19,0.00027397,4]
[326752552,1715308254177,-500.0,0.00027397,4]
[326752553,1715308254188,-500.0,0.00027397,4]
[326752554,1715308254198,-721.56,0.00027397,4]
[326752555,1715308254207,-1200.0,0.00027397,2]
[326752556,1715308254216,-510.56214656,0.00027397,4]
[326752557,1715308254225,-3207.07,0.00027397,4]
[326752558,1715308254234,-505.23908916,0.00027397,4]
[326752559,1715308254244,-1974.74,0.00027397,4]
[326752560,1715308254253,-609.96,0.00027397,4]
[326752561,1715308254262,-507.10752193,0.00027397,4]
[326752562,1715308254271,-1650.83,0.00027397,4]
[326752563,1715308254281,-2603.58,0.00027397,4]
[326752564,1715308254290,-507.80038404,0.00027397,4]
[326752565,1715308254299,-2525.56,0.00027397,4]
[326752566,1715308254308,-3078.88,0.00027397,4]
[326752567,1715308254317,-500.0,0.00027397,4]
[326752568,1715308254326,-510.89596515,0.00027397,4]
[326752569,1715308254335,-700.27,0.00027397,4]
[326752570,1715308254344,-500.0,0.00027397,4]
[326752571,1715308254353,-500.0,0.00027397,4]
[326752572,1715308254362,-2324.43,0.00027397,4]
[326752573,1715308254371,-500.0,0.00027397,4]
[326752574,1715308254381,-510.74438095,0.00027397,4]
[326752575,1715308254390,-510.79487646,0.00027397,4]
[326752576,1715308254399,-387.066836,0.00027397,7]
[326752577,1715308254408,-387.066836,0.00027397,7]
[326752578,1715308254417,-513.04297357,0.00027397,4]
[326752579,1715308254426,-387.066836,0.00027397,7]
[326752580,1715308254436,-387.066836,0.00027397,7]
[326752581,1715308254446,-500.0,0.00027397,4]
[326752582,1715308254456,-513.29408106,0.00027397,4]
[326752583,1715308254467,-387.066836,0.00027397,7]
[326752584,1715308254476,-387.066836,0.00027397,7]
[326752585,1715308254485,-387.066836,0.00027397,7]
[326752586,1715308254494,-500.0,0.00027397,4]
[326752587,1715308254504,-387.066836,0.00027397,7]
[326752588,1715308254513,-638.81,0.00027397,4]
[326752589,1715308254522,-387.066836,0.00027397,7]
[326752590,1715308254532,-387.066836,0.00027397,7]
[326752591,1715308254543,-387.066836,0.00027397,7]
[326752592,1715308254553,-506.81939431,0.00027397,4]
[326752593,1715308254563,-387.066836,0.00027397,7]
[326752594,1715308254572,-151.0,0.00027397,7]
[326752595,1715308254581,-151.0,0.00027397,7]
[326752596,1715308254590,-500.0,0.00027397,4]
[326752597,1715308254599,-387.066836,0.00027397,7]
[326752598,1715308254608,-151.0,0.00027397,7]
[326752599,1715308254617,-568.16,0.00027397,4]
[326752600,1715308254626,-387.066836,0.00027397,7]
[326752601,1715308254635,-771.13,0.00027397,4]
[326752602,1715308254644,-500.0,0.00027397,4]
[326752603,1715308254653,-274.718308,0.00027397,7]
[326752604,1715308254662,-387.066836,0.00027397,7]
[326752605,1715308254671,-387.066827,0.00027397,7]
[326752606,1715308254682,-151.0,0.00027397,7]
[326752607,1715308254691,-500.0,0.00027397,4]
[326752608,1715308254700,-151.0,0.00027397,7]
[326752609,1715308254709,-151.0,0.00027397,7]
[326752610,1715308254718,-650.77,0.00027397,4]
[326752611,1715308254727,-500.0,0.00027397,4]
[326752612,1715308254737,-151.0,0.00027397,7]
[326752613,1715308254746,-623.38,0.00027397,4]
[326752614,1715308254755,-151.0,0.00027397,7]
[326752615,1715308254765,-3026.75,0.00027397,4]
[326752616,1715308254774,-1386.83,0.00027397,4]
[326752617,1715308254784,-158.722971,0.00027397,7]
[326752618,1715308254793,-500.0,0.00027397,4]
[326752619,1715308254802,-500.0,0.00027397,4]
[326752620,1715308254811,-570.55,0.00027397,4]
[326752621,1715308254820,-500.0,0.00027397,4]
[326752622,1715308254830,-682.86,0.00027397,4]
[326752623,1715308254839,-151.0,0.00027397,7]
[326752624,1715308254848,-151.0,0.00027397,7]
[326752625,1715308254857,-151.0,0.00027397,7]
[326752626,1715308254867,-154.98786,0.00027397,7]
[326752627,1715308254876,-506.746123,0.00027397,4]
[326752628,1715308254996,-748.24,0.00027397,4]
[326752629,1715308255008,-2068.9,0.00027397,4]
[326752630,1715308255017,-500.0,0.00027397,4]
[326752631,1715308255027,-7789.31,0.00027397,4]
[326752632,1715308255036,-1986.73,0.00027397,4]
[326752633,1715308255046,-938.64,0.00027397,4]
[326752634,1715308255055,-2930.21,0.00027397,4]
[326752635,1715308255064,-2236.4,0.00027397,4]
[326752636,1715308255073,-500.0,0.00027397,2]
[326752637,1715308255083,-3712.44,0.00027397,4]
[326752638,1715308255092,-1655.66,0.00027397,4]
[326752639,1715308255102,-154.3536,0.00027397,7]
[326752640,1715308255112,-500.0,0.00027397,4]
[326752641,1715308255121,-4230.24,0.00027397,4]
[326752642,1715308255131,-1735.52,0.00027397,4]
[326752643,1715308255141,-500.0,0.00027397,4]